[Event "FIDE U16 Olympiad_boards_81-124"]
[Site "Eindhoven, Netherlands"]
[Date "2023.08.13"]
[Round "1.20"]
[White "Kosak, Karolina"]
[Black "Gikandi, Bernice Wambui"]
[Result "1-0"]
[TimeControl "45min+10sec"]
[WhiteElo "1364"]
[BlackElo "1179"]

1. e4 {[%clk 00:45:16]} {[%emt 00:00:02]} c5 {[%clk 00:45:17]} {[%emt
00:00:05]} 2. c3 {[%clk 00:45:24]} {[%emt 00:00:02]} Nc6 {[%clk 00:45:18]}
{[%emt 00:00:08]} 3. d4 {[%clk 00:45:29]} {[%emt 00:00:06]} cxd4 {[%clk
00:45:22]} {[%emt 00:00:06]} 4. cxd4 {[%clk 00:45:35]} {[%emt 00:00:03]} e6
{[%clk 00:45:30]} {[%emt 00:00:03]} 5. Nf3 {[%clk 00:45:20]} {[%emt 00:00:24]}
Qc7 {[%clk 00:45:33]} {[%emt 00:00:07]} 6. Nc3 {[%clk 00:43:56]} {[%emt
00:01:34]} d6 {[%clk 00:44:23]} {[%emt 00:01:21]} 7. Bd3 {[%clk 00:43:23]}
{[%emt 00:00:39]} Nf6 {[%clk 00:43:56]} {[%emt 00:00:40]} 8. O-O {[%clk
00:42:56]} {[%emt 00:00:36]} Be7 {[%clk 00:43:58]} {[%emt 00:00:10]} 9. Re1
{[%clk 00:41:52]} {[%emt 00:01:03]} O-O {[%clk 00:44:02]} {[%emt 00:00:16]} 10.
Qe2 {[%clk 00:40:42]} {[%emt 00:01:15]} a6 {[%clk 00:43:01]} {[%emt 00:01:16]}
11. a4 {[%clk 00:35:46]} {[%emt 00:05:07]} b6 {[%clk 00:42:07]} {[%emt
00:01:04]} 12. e5 {[%clk 00:34:22]} {[%emt 00:01:34]} dxe5 {[%clk 00:42:04]}
{[%emt 00:00:12]} 13. dxe5 {[%clk 00:34:23]} {[%emt 00:00:09]} Nd7 {[%clk
00:41:05]} {[%emt 00:01:10]} 14. Qe4 {[%clk 00:32:54]} {[%emt 00:01:34]} g6
{[%clk 00:41:12]} {[%emt 00:00:08]} 15. Bf4 {[%clk 00:30:47]} {[%emt 00:02:17]}
Nc5 {[%clk 00:40:58]} {[%emt 00:00:24]} 16. Qe3 {[%clk 00:29:54]} {[%emt
00:00:57]} Nxd3 {[%clk 00:41:04]} {[%emt 00:00:10]} 17. Qxd3 {[%clk 00:29:57]}
{[%emt 00:00:06]} Rd8 {[%clk 00:40:55]} {[%emt 00:00:19]} 18. Qe2 {[%clk
00:29:13]} {[%emt 00:00:50]} Bb7 {[%clk 00:40:50]} {[%emt 00:00:20]} 19. Rac1
{[%clk 00:22:52]} {[%emt 00:06:30]} Qb8 {[%clk 00:39:05]} {[%emt 00:01:56]} 20.
Red1 {[%clk 00:20:12]} {[%emt 00:02:42]} Qa7 {[%clk 00:38:47]} {[%emt
00:00:36]} 21. h4 {[%clk 00:17:57]} {[%emt 00:02:25]} h5 {[%clk 00:31:18]}
{[%emt 00:07:38]} 22. Ne4 {[%clk 00:16:09]} {[%emt 00:01:58]} Rac8 {[%clk
00:26:16]} {[%emt 00:05:12]} 23. Nd6 {[%clk 00:14:29]} {[%emt 00:01:52]} Rc7
{[%clk 00:24:35]} {[%emt 00:01:50]} 24. b4 {[%clk 00:10:24]} {[%emt 00:04:16]}
Qb8 {[%clk 00:23:56]} {[%emt 00:00:47]} 25. Ng5 {[%clk 00:08:47]} {[%emt
00:01:58]} Rf8 {[%clk 00:23:10]} {[%emt 00:01:06]} 26. g4 {[%clk 00:07:38]}
{[%emt 00:01:19]} hxg4 {[%clk 00:21:09]} {[%emt 00:02:11]} 27. Qxg4 {[%clk
00:07:56]} {[%emt 00:00:03]} Nxb4 {[%clk 00:18:43]} {[%emt 00:02:44]} 28. Rxc7
{[%clk 00:05:56]} {[%emt 00:02:12]} Qxc7 {[%clk 00:16:51]} {[%emt 00:02:00]} 29.
Rc1 {[%clk 00:02:03]} {[%emt 00:04:04]} Qd7 {[%clk 00:16:29]} {[%emt 00:00:32]}
30. Rd1 {[%clk 00:01:28]} {[%emt 00:00:45]} Nd5 {[%clk 00:16:10]} {[%emt
00:00:28]} 31. Bg3 {[%clk 00:01:05]} {[%emt 00:00:33]} Bc6 {[%clk 00:16:07]}
{[%emt 00:00:14]} 32. Rd4 {[%clk 00:00:34]} {[%emt 00:00:41]} Bxg5 {[%clk
00:15:12]} {[%emt 00:01:04]} 33. Qxg5 {[%clk 00:00:29]} {[%emt 00:00:17]} Kg7
{[%clk 00:14:03]} {[%emt 00:01:18]} 34. h5 {[%clk 00:00:29]} {[%emt 00:00:11]}
Rh8 {[%clk 00:13:48]} {[%emt 00:00:24]} 35. hxg6 {[%clk 00:00:28]} {[%emt
00:00:11]} fxg6 {[%clk 00:13:06]} {[%emt 00:00:52]} 36. Rg4 {[%clk 00:00:24]}
{[%emt 00:00:14]} Ne7 {[%clk 00:12:46]} {[%emt 00:00:30]} 37. Qf6+ {[%clk
00:00:22]} {[%emt 00:00:11]} Kg8 {[%clk 00:12:07]} {[%emt 00:00:49]} 38. Qf7#
{[%clk 00:00:27]} {[%emt 00:00:06]} 1-0

[Event "FIDE U16 Olympiad_boards_81-124"]
[Site "Eindhoven, Netherlands"]
[Date "2023.08.13"]
[Round "1.21"]
[White "Pidluznij, Gleb"]
[Black "Cauchi, Noah"]
[Result "1-0"]
[TimeControl "45min+10sec"]
[WhiteElo "2143"]
[BlackElo "1530"]

1. d4 {[%clk 00:45:15]} {[%emt 00:00:04]} d5 {[%clk 00:45:14]} {[%emt
00:00:06]} 2. c4 {[%clk 00:45:21]} {[%emt 00:00:04]} e6 {[%clk 00:45:21]}
{[%emt 00:00:03]} 3. Nf3 {[%clk 00:45:28]} {[%emt 00:00:04]} Nf6 {[%clk
00:45:22]} {[%emt 00:00:09]} 4. g3 {[%clk 00:45:25]} {[%emt 00:00:12]} c5
{[%clk 00:45:22]} {[%emt 00:00:11]} 5. cxd5 {[%clk 00:45:22]} {[%emt 00:00:13]}
Nxd5 {[%clk 00:44:56]} {[%emt 00:00:36]} 6. Bg2 {[%clk 00:44:51]} {[%emt
00:00:41]} Nc6 {[%clk 00:44:31]} {[%emt 00:00:34]} 7. dxc5 {[%clk 00:43:58]}
{[%emt 00:01:04]} Bxc5 {[%clk 00:44:34]} {[%emt 00:00:06]} 8. O-O {[%clk
00:44:02]} {[%emt 00:00:04]} O-O {[%clk 00:44:41]} {[%emt 00:00:05]} 9. a3
{[%clk 00:42:47]} {[%emt 00:01:26]} a6 {[%clk 00:43:31]} {[%emt 00:01:20]} 10.
Nbd2 {[%clk 00:40:06]} {[%emt 00:02:50]} Ba7 {[%clk 00:41:52]} {[%emt
00:01:50]} 11. Qc2 {[%clk 00:39:50]} {[%emt 00:00:25]} Bd7 {[%clk 00:41:13]}
{[%emt 00:00:50]} 12. Qd3 {[%clk 00:32:35]} {[%emt 00:07:25]} Nce7 {[%clk
00:39:08]} {[%emt 00:02:15]} 13. Nc4 {[%clk 00:26:57]} {[%emt 00:05:47]} Ng6
{[%clk 00:37:21]} {[%emt 00:01:58]} 14. b3 {[%clk 00:25:17]} {[%emt 00:01:50]}
Bb5 {[%clk 00:31:33]} {[%emt 00:05:57]} 15. Bb2 {[%clk 00:20:42]} {[%emt
00:04:45]} Nf6 {[%clk 00:28:50]} {[%emt 00:02:54]} 16. Qxd8 {[%clk 00:19:07]}
{[%emt 00:01:45]} Raxd8 {[%clk 00:28:45]} {[%emt 00:00:14]} 17. Rac1 {[%clk
00:19:12]} {[%emt 00:00:05]} Bc6 {[%clk 00:22:34]} {[%emt 00:06:22]} 18. Rfd1
{[%clk 00:17:30]} {[%emt 00:01:51]} Bd5 {[%clk 00:20:07]} {[%emt 00:02:37]} 19.
Bxf6 {[%clk 00:14:30]} {[%emt 00:03:11]} gxf6 {[%clk 00:20:14]} {[%emt
00:00:03]} 20. Nfd2 {[%clk 00:14:33]} {[%emt 00:00:07]} Bxg2 {[%clk 00:19:39]}
{[%emt 00:00:44]} 21. Kxg2 {[%clk 00:14:42]} {[%emt 00:00:02]} f5 {[%clk
00:17:42]} {[%emt 00:02:07]} 22. Nf3 {[%clk 00:13:35]} {[%emt 00:01:17]} Ne7
{[%clk 00:15:15]} {[%emt 00:02:37]} 23. Na5 {[%clk 00:12:39]} {[%emt 00:01:06]}
b5 {[%clk 00:13:59]} {[%emt 00:01:26]} 24. Rxd8 {[%clk 00:11:54]} {[%emt
00:00:55]} Rxd8 {[%clk 00:14:06]} {[%emt 00:00:02]} 25. Rc7 {[%clk 00:12:03]}
{[%emt 00:00:02]} Bb6 {[%clk 00:14:15]} {[%emt 00:00:01]} 26. Rxe7 {[%clk
00:12:09]} {[%emt 00:00:03]} Bxa5 {[%clk 00:14:22]} {[%emt 00:00:03]} 27. Ra7
{[%clk 00:12:18]} {[%emt 00:00:01]} Rd6 {[%clk 00:13:47]} {[%emt 00:00:46]} 28.
b4 {[%clk 00:12:21]} {[%emt 00:00:06]} Bd8 {[%clk 00:13:54]} {[%emt 00:00:03]}
29. Ne5 {[%clk 00:12:24]} {[%emt 00:00:07]} f6 {[%clk 00:12:13]} {[%emt
00:01:52]} 30. Nd3 {[%clk 00:10:11]} {[%emt 00:02:23]} e5 {[%clk 00:11:43]}
{[%emt 00:00:39]} 31. Ra8 {[%clk 00:05:25]} {[%emt 00:04:56]} Kf7 {[%clk
00:10:14]} {[%emt 00:01:39]} 32. Ra7+ {[%clk 00:04:44]} {[%emt 00:00:52]} Kg6
{[%clk 00:10:10]} {[%emt 00:00:12]} 33. h4 {[%clk 00:04:52]} {[%emt 00:00:03]}
h5 {[%clk 00:10:11]} {[%emt 00:00:09]} 34. Kf1 {[%clk 00:03:38]} {[%emt
00:01:25]} Kh6 {[%clk 00:09:20]} {[%emt 00:01:00]} 35. Ra8 {[%clk 00:02:32]}
{[%emt 00:01:16]} Be7 {[%clk 00:07:46]} {[%emt 00:01:44]} 36. Ra7 {[%clk
00:01:56]} {[%emt 00:00:47]} Bd8 {[%clk 00:07:53]} {[%emt 00:00:02]} 37. Kg2
{[%clk 00:02:05]} {[%emt 00:00:01]} Kg6 {[%clk 00:07:50]} {[%emt 00:00:13]} 38.
Ra8 {[%clk 00:01:59]} {[%emt 00:00:16]} Be7 {[%clk 00:06:27]} {[%emt 00:01:34]}
39. Rc8 {[%clk 00:01:17]} {[%emt 00:00:52]} a5 {[%clk 00:05:11]} {[%emt
00:01:26]} 40. Rb8 {[%clk 00:00:33]} {[%emt 00:00:54]} axb4 {[%clk 00:02:40]}
{[%emt 00:02:41]} 41. axb4 {[%clk 00:00:42]} {[%emt 00:00:01]} Rd5 {[%clk
00:02:39]} {[%emt 00:00:10]} 42. f3 {[%clk 00:00:48]} {[%emt 00:00:05]} Bd6
{[%clk 00:01:16]} {[%emt 00:01:33]} 43. Rd8 {[%clk 00:00:42]} {[%emt 00:00:16]}
Rd4 {[%clk 00:01:17]} {[%emt 00:00:09]} 44. Rd7 {[%clk 00:00:35]} {[%emt
00:00:17]} Kh6 {[%clk 00:00:59]} {[%emt 00:00:27]} 45. Rb7 {[%clk 00:00:22]}
{[%emt 00:00:24]} Bxb4 {[%clk 00:00:55]} {[%emt 00:00:13]} 46. Rxb5 {[%clk
00:00:29]} {[%emt 00:00:05]} Bf8 {[%clk 00:01:01]} {[%emt 00:00:03]} 47. Rb6
{[%clk 00:00:32]} {[%emt 00:00:07]} Bg7 {[%clk 00:01:08]} {[%emt 00:00:02]} 48.
Nxe5 {[%clk 00:00:38]} {[%emt 00:00:04]} Rd2 {[%clk 00:00:31]} {[%emt
00:00:47]} 49. Kf2 {[%clk 00:00:37]} {[%emt 00:00:11]} Ra2 {[%clk 00:00:38]}
{[%emt 00:00:04]} 50. Nd3 {[%clk 00:00:41]} {[%emt 00:00:06]} Ra8 {[%clk
00:00:43]} {[%emt 00:00:04]} 51. Rb5 {[%clk 00:00:49]} {[%emt 00:00:03]} Re8
{[%clk 00:00:12]} {[%emt 00:00:41]} 52. Rxf5 {[%clk 00:00:56]} {[%emt
00:00:02]} Kg6 {[%clk 00:00:21]} {[%emt 00:00:03]} 53. Rd5 {[%clk 00:01:04]}
{[%emt 00:00:01]} Kf7 {[%clk 00:00:25]} {[%emt 00:00:05]} 54. Rxh5 {[%clk
00:01:10]} {[%emt 00:00:04]} 1-0

[Event "FIDE U16 Olympiad_boards_81-124"]
[Site "Eindhoven, Netherlands"]
[Date "2023.08.13"]
[Round "1.22"]
[White "Zangrilli, Leonardo"]
[Black "Morkunas, Gustas"]
[Result "0-1"]
[TimeControl "45min+10sec"]
[WhiteElo "1205"]
[BlackElo "2069"]

1. e4 {[%clk 00:45:16]} {[%emt 00:00:03]} c5 {[%clk 00:45:18]} {[%emt
00:00:02]} 2. Nf3 {[%clk 00:45:21]} {[%emt 00:00:06]} e6 {[%clk 00:45:26]}
{[%emt 00:00:01]} 3. d4 {[%clk 00:45:26]} {[%emt 00:00:05]} cxd4 {[%clk
00:45:35]} {[%emt 00:00:02]} 4. Nxd4 {[%clk 00:45:34]} {[%emt 00:00:02]} a6
{[%clk 00:45:43]} {[%emt 00:00:01]} 5. Nc3 {[%clk 00:45:34]} {[%emt 00:00:11]}
Qc7 {[%clk 00:45:49]} {[%emt 00:00:03]} 6. a3 {[%clk 00:41:22]} {[%emt
00:04:23]} Nf6 {[%clk 00:44:30]} {[%emt 00:01:28]} 7. Be3 {[%clk 00:40:39]}
{[%emt 00:00:54]} d6 {[%clk 00:42:19]} {[%emt 00:02:20]} 8. f3 {[%clk
00:37:52]} {[%emt 00:02:58]} Be7 {[%clk 00:41:45]} {[%emt 00:00:44]} 9. Be2
{[%clk 00:35:55]} {[%emt 00:02:07]} Nbd7 {[%clk 00:40:02]} {[%emt 00:01:53]} 10.
Qd2 {[%clk 00:34:39]} {[%emt 00:01:26]} b5 {[%clk 00:33:09]} {[%emt 00:07:03]}
11. O-O-O {[%clk 00:32:15]} {[%emt 00:02:34]} Bb7 {[%clk 00:32:37]} {[%emt
00:00:42]} 12. g4 {[%clk 00:30:40]} {[%emt 00:01:45]} Ne5 {[%clk 00:25:25]}
{[%emt 00:07:22]} 13. Ndxb5 {[%clk 00:26:45]} {[%emt 00:04:05]} axb5 {[%clk
00:24:11]} {[%emt 00:01:24]} 14. Nxb5 {[%clk 00:26:54]} Qd8 {[%clk 00:15:33]}
{[%emt 00:08:48]} 15. Nxd6+ {[%clk 00:26:28]} {[%emt 00:00:36]} Bxd6 {[%clk
00:15:05]} {[%emt 00:00:38]} 16. Qxd6 {[%clk 00:26:30]} {[%emt 00:00:08]} Qxd6
{[%clk 00:15:12]} {[%emt 00:00:04]} 17. Rxd6 {[%clk 00:26:38]} {[%emt
00:00:01]} O-O {[%clk 00:14:27]} {[%emt 00:00:55]} 18. Bd4 {[%clk 00:23:42]}
{[%emt 00:03:06]} Nc6 {[%clk 00:13:18]} {[%emt 00:01:19]} 19. Bxf6 {[%clk
00:23:02]} {[%emt 00:00:50]} gxf6 {[%clk 00:13:26]} {[%emt 00:00:02]} 20. Rhd1
{[%clk 00:19:31]} {[%emt 00:03:41]} Ne5 {[%clk 00:08:47]} {[%emt 00:04:49]} 21.
h4 {[%clk 00:17:12]} {[%emt 00:02:30]} Rac8 {[%clk 00:07:52]} {[%emt 00:01:05]}
22. b3 {[%clk 00:14:19]} {[%emt 00:03:03]} Ng6 {[%clk 00:06:42]} {[%emt
00:01:20]} 23. c4 {[%clk 00:11:56]} {[%emt 00:02:32]} Nf4 {[%clk 00:05:21]}
{[%emt 00:01:31]} 24. Bf1 {[%clk 00:11:58]} {[%emt 00:00:07]} f5 {[%clk
00:04:48]} {[%emt 00:00:43]} 25. g5 {[%clk 00:08:51]} {[%emt 00:03:18]} fxe4
{[%clk 00:03:45]} {[%emt 00:01:13]} 26. fxe4 {[%clk 00:09:00]} {[%emt
00:00:01]} e5 {[%clk 00:03:43]} {[%emt 00:00:12]} 27. b4 {[%clk 00:07:28]}
{[%emt 00:01:43]} Bxe4 {[%clk 00:03:52]} {[%emt 00:00:01]} 28. Re1 {[%clk
00:07:00]} {[%emt 00:00:37]} Bg2 {[%clk 00:04:01]} 29. c5 {[%clk 00:05:12]}
{[%emt 00:01:58]} Bxf1 {[%clk 00:03:20]} {[%emt 00:00:51]} 30. Rxf1 {[%clk
00:05:17]} {[%emt 00:00:05]} Rfe8 {[%clk 00:03:17]} {[%emt 00:00:13]} 31. c6
{[%clk 00:04:05]} {[%emt 00:01:22]} Ne2+ {[%clk 00:02:30]} {[%emt 00:00:57]} 32.
Kb2 {[%clk 00:03:44]} {[%emt 00:00:30]} Nd4 {[%clk 00:01:36]} {[%emt 00:01:05]}
33. Rc1 {[%clk 00:02:54]} {[%emt 00:01:00]} Nf5 {[%clk 00:00:42]} {[%emt
00:01:04]} 34. Rd7 {[%clk 00:02:00]} {[%emt 00:01:00]} e4 {[%clk 00:00:50]}
{[%emt 00:00:06]} 35. c7 {[%clk 00:01:10]} {[%emt 00:01:00]} e3 {[%clk
00:00:19]} {[%emt 00:00:41]} 36. Re1 {[%clk 00:00:47]} {[%emt 00:00:33]} Kg7
{[%clk 00:00:15]} {[%emt 00:00:14]} 37. b5 {[%clk 00:00:34]} {[%emt 00:00:22]}
e2 {[%clk 00:00:17]} {[%emt 00:00:09]} 38. b6 {[%clk 00:00:19]} {[%emt
00:00:25]} Re6 {[%clk 00:00:26]} 0-1

[Event "FIDE U16 Olympiad_boards_81-124"]
[Site "Eindhoven, Netherlands"]
[Date "2023.08.13"]
[Round "1.23"]
[White "Rudzkis, Vilius"]
[Black "Grima Bongailas, Isaac"]
[Result "1-0"]
[TimeControl "45min+10sec"]
[WhiteElo "1835"]
[BlackElo "1270"]

1. d4 {[%clk 00:45:13]} {[%emt 00:00:06]} Nf6 {[%clk 00:45:18]} {[%emt
00:00:02]} 2. c4 {[%clk 00:45:22]} {[%emt 00:00:02]} c5 {[%clk 00:45:27]}
{[%emt 00:00:01]} 3. d5 {[%clk 00:45:30]} {[%emt 00:00:02]} e6 {[%clk
00:45:35]} {[%emt 00:00:02]} 4. Nc3 {[%clk 00:45:39]} {[%emt 00:00:01]} exd5
{[%clk 00:45:44]} {[%emt 00:00:01]} 5. cxd5 {[%clk 00:45:47]} {[%emt 00:00:02]}
d6 {[%clk 00:45:53]} {[%emt 00:00:01]} 6. e4 {[%clk 00:45:52]} {[%emt
00:00:05]} g6 {[%clk 00:45:59]} {[%emt 00:00:03]} 7. h3 {[%clk 00:45:54]}
{[%emt 00:00:08]} Bg7 {[%clk 00:45:53]} {[%emt 00:00:17]} 8. Nf3 {[%clk
00:46:00]} {[%emt 00:00:03]} Nbd7 {[%clk 00:45:55]} {[%emt 00:00:08]} 9. Bd3
{[%clk 00:45:19]} {[%emt 00:00:51]} O-O {[%clk 00:44:17]} {[%emt 00:01:49]} 10.
O-O {[%clk 00:45:24]} {[%emt 00:00:05]} Re8 {[%clk 00:44:19]} {[%emt 00:00:07]}
11. Bf4 {[%clk 00:45:07]} {[%emt 00:00:27]} Ne5 {[%clk 00:42:52]} {[%emt
00:01:37]} 12. Nxe5 {[%clk 00:44:06]} {[%emt 00:01:12]} dxe5 {[%clk 00:43:00]}
{[%emt 00:00:02]} 13. Be3 {[%clk 00:43:17]} {[%emt 00:00:58]} b6 {[%clk
00:39:38]} {[%emt 00:03:32]} 14. Qc2 {[%clk 00:38:06]} {[%emt 00:05:21]} Bb7
{[%clk 00:38:31]} {[%emt 00:01:18]} 15. Rfd1 {[%clk 00:34:55]} {[%emt
00:03:20]} Rc8 {[%clk 00:34:58]} {[%emt 00:03:43]} 16. Qa4 {[%clk 00:29:36]}
{[%emt 00:05:29]} Ra8 {[%clk 00:33:38]} {[%emt 00:01:30]} 17. Rac1 {[%clk
00:26:26]} {[%emt 00:03:20]} a6 {[%clk 00:28:50]} {[%emt 00:04:58]} 18. Qb3
{[%clk 00:24:59]} {[%emt 00:01:37]} Nd7 {[%clk 00:27:39]} {[%emt 00:01:22]} 19.
a4 {[%clk 00:24:12]} {[%emt 00:00:57]} Rc8 {[%clk 00:24:30]} {[%emt 00:03:17]}
20. Nb1 {[%clk 00:23:36]} {[%emt 00:00:47]} h5 {[%clk 00:19:26]} {[%emt
00:05:14]} 21. Nd2 {[%clk 00:23:14]} {[%emt 00:00:32]} Rb8 {[%clk 00:17:04]}
{[%emt 00:02:33]} 22. Bc4 {[%clk 00:18:33]} {[%emt 00:04:51]} Bf8 {[%clk
00:14:24]} {[%emt 00:02:50]} 23. Qd3 {[%clk 00:16:47]} {[%emt 00:01:56]} Qc8
{[%clk 00:13:12]} {[%emt 00:01:22]} 24. Nb1 {[%clk 00:14:27]} {[%emt 00:02:29]}
Ra8 {[%clk 00:09:04]} {[%emt 00:04:19]} 25. Nc3 {[%clk 00:12:58]} {[%emt
00:01:38]} Nb8 {[%clk 00:08:40]} {[%emt 00:00:33]} 26. Bg5 {[%clk 00:10:18]}
{[%emt 00:02:50]} Be7 {[%clk 00:08:20]} {[%emt 00:00:29]} 27. Bxe7 {[%clk
00:09:47]} {[%emt 00:00:43]} Rxe7 {[%clk 00:08:27]} {[%emt 00:00:02]} 28. d6
{[%clk 00:09:56]} {[%emt 00:00:02]} Rd7 {[%clk 00:08:19]} {[%emt 00:00:18]} 29.
Qg3 {[%clk 00:10:05]} {[%emt 00:00:01]} Nc6 {[%clk 00:07:00]} {[%emt 00:01:29]}
30. Qxg6+ {[%clk 00:09:51]} {[%emt 00:00:24]} 1-0

[Event "FIDE U16 Olympiad_boards_81-124"]
[Site "Eindhoven, Netherlands"]
[Date "2023.08.13"]
[Round "1.24"]
[White "Thornton, Hayley"]
[Black "Mickunaite, Agne"]
[Result "0-1"]
[TimeControl "45min+10sec"]
[WhiteElo "1047"]
[BlackElo "1681"]

1. e4 {[%clk 00:45:17]} {[%emt 00:00:02]} c5 {[%clk 00:45:17]} {[%emt
00:00:03]} 2. Nf3 {[%clk 00:45:25]} {[%emt 00:00:03]} d6 {[%clk 00:45:25]} 3.
d4 {[%clk 00:45:34]} {[%emt 00:00:02]} cxd4 {[%clk 00:45:33]} {[%emt 00:00:02]}
4. Nxd4 {[%clk 00:45:42]} {[%emt 00:00:02]} Nf6 {[%clk 00:45:41]} {[%emt
00:00:02]} 5. Nc3 {[%clk 00:45:50]} {[%emt 00:00:02]} g6 {[%clk 00:45:47]}
{[%emt 00:00:03]} 6. Be3 {[%clk 00:45:59]} {[%emt 00:00:02]} Bg7 {[%clk
00:45:54]} {[%emt 00:00:03]} 7. f3 {[%clk 00:45:59]} {[%emt 00:00:11]} a6
{[%clk 00:46:00]} {[%emt 00:00:04]} 8. Qd2 {[%clk 00:46:03]} {[%emt 00:00:05]}
h5 {[%clk 00:46:06]} {[%emt 00:00:03]} 9. O-O-O {[%clk 00:46:02]} {[%emt
00:00:12]} Nbd7 {[%clk 00:45:39]} {[%emt 00:00:36]} 10. Kb1 {[%clk 00:44:39]}
{[%emt 00:01:34]} Qc7 {[%clk 00:45:36]} {[%emt 00:00:13]} 11. Nb3 {[%clk
00:40:21]} {[%emt 00:04:28]} b5 {[%clk 00:44:57]} {[%emt 00:00:48]} 12. Be2
{[%clk 00:29:09]} {[%emt 00:11:22]} Ne5 {[%clk 00:41:49]} {[%emt 00:03:18]} 13.
Qd4 {[%clk 00:23:00]} {[%emt 00:06:19]} Nc6 {[%clk 00:36:28]} {[%emt 00:05:31]}
14. Qb6 {[%clk 00:21:23]} {[%emt 00:01:47]} Qxb6 {[%clk 00:35:12]} {[%emt
00:01:26]} 15. Bxb6 {[%clk 00:21:30]} {[%emt 00:00:04]} Rb8 {[%clk 00:31:40]}
{[%emt 00:03:41]} 16. Be3 {[%clk 00:20:13]} {[%emt 00:01:27]} Ne5 {[%clk
00:28:26]} {[%emt 00:03:25]} 17. Rd3 {[%clk 00:15:46]} {[%emt 00:04:37]} Nxd3
{[%clk 00:28:02]} {[%emt 00:00:33]} 18. cxd3 {[%clk 00:13:48]} {[%emt
00:02:09]} Bd7 {[%clk 00:26:24]} {[%emt 00:01:48]} 19. Rc1 {[%clk 00:11:24]}
{[%emt 00:02:34]} O-O {[%clk 00:25:07]} {[%emt 00:01:27]} 20. Nd1 {[%clk
00:09:48]} {[%emt 00:01:46]} Rfc8 {[%clk 00:24:52]} {[%emt 00:00:24]} 21. Nc3
{[%clk 00:09:15]} {[%emt 00:00:43]} b4 {[%clk 00:24:42]} {[%emt 00:00:21]} 22.
Nd1 {[%clk 00:07:57]} {[%emt 00:01:29]} Rxc1+ {[%clk 00:24:42]} {[%emt
00:00:08]} 23. Nxc1 {[%clk 00:06:02]} {[%emt 00:02:05]} a5 {[%clk 00:24:28]}
{[%emt 00:00:24]} 24. Nb3 {[%clk 00:05:34]} {[%emt 00:00:39]} a4 {[%clk
00:24:01]} {[%emt 00:00:36]} 25. Nd4 {[%clk 00:05:09]} {[%emt 00:00:35]} e5
{[%clk 00:23:54]} {[%emt 00:00:17]} 26. Nc2 {[%clk 00:05:07]} {[%emt 00:00:13]}
d5 {[%clk 00:22:41]} {[%emt 00:01:22]} 27. Bd2 {[%clk 00:05:00]} {[%emt
00:00:17]} Bf8 {[%clk 00:21:21]} {[%emt 00:01:30]} 28. Nde3 {[%clk 00:04:47]}
{[%emt 00:00:24]} b3 {[%clk 00:19:37]} {[%emt 00:01:53]} 29. Ne1 {[%clk
00:04:15]} {[%emt 00:00:43]} Be6 {[%clk 00:18:49]} {[%emt 00:00:58]} 30. a3
{[%clk 00:04:10]} {[%emt 00:00:15]} d4 {[%clk 00:17:41]} {[%emt 00:01:17]} 31.
Nd1 {[%clk 00:02:46]} {[%emt 00:01:34]} Nd7 {[%clk 00:17:31]} {[%emt 00:00:19]}
32. Nf2 {[%clk 00:01:11]} {[%emt 00:01:47]} f5 {[%clk 00:16:52]} {[%emt
00:00:48]} 33. Ba5 {[%clk 00:00:25]} {[%emt 00:00:57]} Rc8 {[%clk 00:16:17]}
{[%emt 00:00:44]} 34. Bd2 {[%clk 00:00:29]} {[%emt 00:00:06]} Nc5 {[%clk
00:15:53]} {[%emt 00:00:34]} 35. Bc1 {[%clk 00:00:37]} {[%emt 00:00:02]} Kh7
{[%clk 00:15:43]} {[%emt 00:00:19]} 36. Bd2 {[%clk 00:00:46]} {[%emt 00:00:03]}
Bh6 {[%clk 00:15:51]} {[%emt 00:00:02]} 37. Bc1 {[%clk 00:00:52]} {[%emt
00:00:03]} Bxc1 {[%clk 00:15:58]} {[%emt 00:00:03]} 38. Kxc1 {[%clk 00:01:00]}
{[%emt 00:00:03]} Nxe4+ {[%clk 00:15:47]} {[%emt 00:00:20]} 39. Kb1 {[%clk
00:00:38]} {[%emt 00:00:32]} Nd2+ {[%clk 00:15:44]} {[%emt 00:00:13]} 40. Ka1
{[%clk 00:00:40]} {[%emt 00:00:08]} Rc1# {[%emt 00:00:57]} 0-1